bitfinex-derivatives/quotes_BTCF0:USTF0_20210705
["timestamp","ask_amount","ask_price","bid_price","bid_amount"]
[1625510597683,0.59915088,34008.0,34007.0,3.69806501]
[1625510597785,0.54015088,34008.0,34007.0,3.69806501]
[1625510598336,0.54015088,34008.0,34007.0,5.08349102]
[1625510598540,0.48115088,34008.0,34007.0,5.08349102]
[1625510598987,0.24057544,34012.0,34007.0,5.08349102]
[1625510599092,0.29957544,34012.0,34007.0,5.08349102]
[1625510599390,0.29957544,34012.0,34008.0,0.00348476]
[1625510599490,0.29957544,34012.0,34011.0,0.24057544]
[1625510599590,0.24057544,34012.0,34011.0,3.70382311]
[1625510599939,0.24057544,34012.0,34011.0,3.7073078]
[1625510600040,0.24057544,34012.0,34011.0,5.09268665]
[1625510600392,0.24057544,34015.0,34011.0,5.09268665]
[1625510600791,0.24057544,34015.0,34012.0,0.00348443]
[1625510600893,0.24057544,34015.0,34012.0,0.21848443]
[1625510600992,0.24057544,34015.0,34014.0,4.85061763]
[1625510601291,0.24057544,34015.0,34014.0,4.85410195]
[1625510601491,0.24057544,34015.0,34014.0,5.09467739]
[1625510603398,0.9333,34019.0,34014.0,5.09467739]
[1625510603498,0.9923,34019.0,34018.0,0.24057544]
[1625510603799,0.9923,34019.0,34018.0,3.70567381]
[1625510603998,0.9923,34019.0,34018.0,3.70915799]
[1625510605652,1.0793,34019.0,34018.0,3.70915799]
[1625510605753,0.9923,34019.0,34018.0,3.70915799]
[1625510605852,1.0513,34019.0,34018.0,3.70915799]
[1625510606852,1.0513,34019.0,34018.0,3.70567381]
[1625510607055,0.9923,34019.0,34018.0,3.70567381]
[1625510607154,0.9923,34019.0,34018.0,3.70915805]
[1625510608305,0.9923,34019.0,34018.0,5.09641276]
[1625510608406,0.9923,34019.0,34018.0,5.09292852]
[1625510608757,1.07763737,34019.0,34018.0,3.70567381]
[1625510608957,1.07763737,34019.0,34018.0,3.70915806]
[1625510609507,0.9923,34019.0,34018.0,3.70915806]
[1625510609806,0.9923,34019.0,34018.0,5.09613811]
[1625510610508,0.9923,34019.0,34018.0,3.70915806]
[1625510610959,1.0513,34019.0,34018.0,3.70915806]
[1625510611359,0.9923,34019.0,34018.0,3.70915806]
[1625510611960,0.9923,34019.0,34018.0,5.09592888]
[1625510612261,0.9923,34019.0,34018.0,3.70915806]
[1625510612661,0.9923,34019.0,34018.0,5.09594097]
[1625510613664,0.9923,34019.0,34018.0,3.70915806]
[1625510615723,1.0513,34019.0,34018.0,3.70915806]
[1625510615923,1.0513,34019.0,34018.0,3.70567381]
[1625510616326,1.0513,34019.0,34018.0,2.49288938]
[1625510620434,1.0513,34019.0,34018.0,2.49637377]
[1625510621296,1.0513,34019.0,34018.0,2.49288938]
[1625510621590,1.558441,34019.0,34018.0,1.45335987]
[1625510622092,2.23447529,34019.0,34018.0,0.24057544]
[1625510622441,3.24852483,34019.0,34018.0,0.32725438]
[1625510622543,3.26382788,34019.0,34018.0,0.32725438]
[1625510622797,3.24852483,34019.0,34018.0,0.32725438]
[1625510623098,3.26382766,34019.0,34018.0,0.32725438]
[1625510623347,3.24852483,34019.0,34018.0,0.32725438]
[1625510623648,3.26382782,34019.0,34018.0,0.08667894]
[1625510624251,0.059,34018.0,34014.0,0.25312546]
[1625510624364,0.32265,34018.0,34014.0,0.25312546]
[1625510624450,0.3969548,34018.0,34014.0,0.25312546]
[1625510624649,0.01530636,34017.0,34014.0,0.25312546]
[1625510624751,0.07430636,34017.0,34004.0,1.73401825]
[1625510624848,0.13330636,34017.0,34004.0,1.73401825]
[1625510624951,0.13330636,34017.0,34012.0,1.32910359]
[1625510625249,0.01530739,34016.0,34012.0,1.32910359]
[1625510625349,0.0883,34015.0,34012.0,1.32910359]
[1625510625454,0.0883,34015.0,34001.0,0.057]
[1625510625455,0.1473,34015.0,34001.0,0.057]
[1625510625553,0.2063,34015.0,34001.0,0.057]
[1625510625652,0.49079544,34004.0,34003.0,0.24057544]
[1625510625752,0.54979544,34004.0,34003.0,0.24057544]
[1625510626055,0.54979544,34004.0,34003.0,0.24406078]
[1625510627054,0.60879544,34004.0,34003.0,0.24406078]
[1625510627155,0.60879544,34004.0,34003.0,0.00348534]
[1625510627466,0.60879544,34004.0,34000.0,0.24057544]
[1625510627656,0.01345275,34001.0,33999.0,1.56134549]
[1625510627756,0.01345275,34001.0,33988.0,0.24057544]
[1625510627757,0.01345275,34001.0,33994.0,1.56155611]
[1625510627856,0.13145275,34001.0,33994.0,1.56155611]
[1625510628258,0.13145275,34001.0,33993.0,1.80218099]
[1625510628561,0.13145275,34001.0,33993.0,1.56160555]
[1625510628660,0.63145275,34001.0,33991.0,1.56091276]
[1625510628812,4.4982,33992.0,33991.0,1.56091276]
[1625510628910,4.73812,33992.0,33991.0,1.56091276]
[1625510629010,4.85612,33992.0,33991.0,1.56091276]
[1625510629211,4.85612,33992.0,33985.0,0.24057544]
[1625510629212,4.85612,33992.0,33988.0,1.56095028]
[1625510629609,0.72172632,33989.0,33988.0,1.56095028]
[1625510629811,0.78072632,33989.0,33987.0,1.5610447]
[1625510630411,0.78072632,33989.0,33986.0,1.55987207]
[1625510632462,0.78072632,33989.0,33986.0,1.61687207]
[1625510632915,0.78072632,33989.0,33988.0,1.55872505]
[1625510633016,0.78072632,33989.0,33988.0,1.77797505]
[1625510633315,0.72172632,33989.0,33988.0,1.77797505]
[1625510633768,0.78072632,33989.0,33988.0,1.77797505]
[1625510634417,0.72172632,33989.0,33988.0,1.77797505]
[1625510634922,0.72172632,33989.0,33988.0,5.68207505]
[1625510635371,0.78072632,33989.0,33988.0,5.68207505]
[1625510635720,0.48115088,33989.0,33988.0,5.92265049]
[1625510637574,0.48115088,33989.0,33988.0,5.92613639]
[1625510637874,0.24057544,33999.0,33988.0,5.92613639]
[1625510637875,0.24057544,33999.0,33988.0,7.66842211]
[1625510637976,0.059,33999.0,33989.0,0.057]
[1625510638093,0.9093,34006.0,33989.0,0.116]
[1625510638182,0.9093,34006.0,33989.0,0.175]
[1625510638277,0.9093,34006.0,33995.0,1.55751679]
[1625510638376,0.9683,34006.0,33996.0,0.057]
[1625510638474,0.9683,34006.0,33996.0,0.29139]
[1625510638574,0.9093,34006.0,33996.0,0.40939]
[1625510638676,0.9093,34006.0,34002.0,1.55747997]
[1625510638775,0.9093,34006.0,34003.0,0.057]
[1625510638876,0.9093,34006.0,34003.0,0.37554]
[1625510638979,0.9093,34006.0,34005.0,5.17]
[1625510639078,0.9093,34006.0,34005.0,5.229]
[1625510639379,0.9093,34006.0,34005.0,5.288]
[1625510639478,0.9093,34006.0,34005.0,6.84526598]
[1625510639780,0.9093,34006.0,34005.0,7.80756774]
[1625510639980,0.9093,34006.0,34005.0,9.19178546]
[1625510641131,0.9093,34006.0,34005.0,9.13278546]
[1625510641393,0.9093,34006.0,34005.0,9.07378546]
[1625510642034,0.9093,34006.0,34005.0,7.51651948]
[1625510643742,1.14987544,34006.0,34005.0,7.51651948]
[1625510644899,1.14987544,34006.0,34005.0,8.72800617]
[1625510648453,0.9093,34006.0,34005.0,8.72800617]
[1625510648551,0.9093,34006.0,34005.0,9.04235617]
[1625510648953,0.9093,34006.0,34005.0,9.04584084]
[1625510649054,0.9093,34006.0,34005.0,10.60328664]
[1625510649958,0.9683,34006.0,34005.0,10.60328664]
[1625510650058,0.9683,34006.0,34005.0,10.59980197]
[1625510650159,0.9683,34006.0,34005.0,9.04235617]
[1625510650258,0.9683,34006.0,34005.0,8.72800617]
[1625510651059,0.9093,34006.0,34005.0,8.72800617]
[1625510651260,0.9683,34006.0,34005.0,3.55800617]
[1625510651563,0.9683,34006.0,34005.0,2.17378845]
[1625510651760,1.20887544,34006.0,34005.0,2.17378845]
[1625510652815,1.26787544,34006.0,34005.0,2.17378845]
[1625510652913,1.20887544,34006.0,34005.0,2.17378845]
[1625510653115,1.26787544,34006.0,34005.0,2.17378845]
[1625510653676,1.20887544,34006.0,34005.0,2.17378845]
[1625510653871,1.20887544,34006.0,34005.0,0.96230176]
[1625510653966,1.14987544,34006.0,34005.0,0.96230176]
[1625510654267,1.14987544,34006.0,34005.0,2.17370708]
[1625510654469,1.26787544,34006.0,34005.0,2.17370708]
[1625510654567,1.26787544,34006.0,34005.0,3.21217146]
[1625510656519,1.20887544,34006.0,34005.0,3.21217146]
[1625510656721,1.20887544,34006.0,34005.0,4.5967384]
[1625510656870,1.14987544,34006.0,34005.0,4.5967384]
[1625510657071,1.20887544,34006.0,34005.0,4.5967384]
[1625510658122,1.26787544,34006.0,34005.0,4.5967384]
[1625510658275,1.26787544,34006.0,34005.0,3.21217146]
[1625510661584,1.26787544,34006.0,34005.0,3.21565676]
[1625510661885,1.26787544,34006.0,34005.0,0.96578706]
[1625510662389,1.26787544,34006.0,34005.0,3.21577101]
[1625510662685,1.20887544,34006.0,34005.0,3.21577101]
[1625510663134,1.26787544,34006.0,34005.0,3.21577101]
[1625510663586,1.20887544,34006.0,34005.0,3.21577101]
[1625510664138,1.20887544,34006.0,34005.0,4.60051183]
[1625510664737,1.26787544,34006.0,34005.0,4.60051183]
[1625510664838,1.56501544,34006.0,34005.0,4.60051183]
[1625510665339,1.56501544,34006.0,34005.0,3.21577101]
[1625510667293,1.56501544,34006.0,34005.0,2.97519557]
[1625510667397,1.56501544,34006.0,34005.0,2.73462013]
[1625510667600,1.56501544,34006.0,34005.0,1.52309031]
[1625510668543,1.50601544,34006.0,34005.0,1.52309031]
[1625510668644,1.20887544,34006.0,34005.0,1.52309031]
[1625510669296,1.20887544,34006.0,34005.0,2.7354886]
[1625510669896,1.26787544,34006.0,34005.0,2.7354886]
[1625510671099,1.26787544,34006.0,34005.0,1.52309031]
[1625510672713,1.26787544,34006.0,34005.0,2.73591932]
[1625510672959,1.20887544,34006.0,34005.0,2.73591932]
[1625510673156,1.26787544,34006.0,34005.0,2.73591932]
[1625510675511,1.20887544,34006.0,34005.0,2.73591932]
[1625510676867,1.26787544,34006.0,34005.0,2.73591932]
[1625510676967,1.20887544,34006.0,34005.0,2.73591932]
[1625510677717,1.26787544,34006.0,34005.0,2.73591932]
[1625510678717,1.26787544,34006.0,34005.0,2.25476844]
[1625510679419,1.20887544,34006.0,34005.0,2.25476844]
[1625510679820,1.14987544,34006.0,34005.0,2.56684844]
[1625510679921,1.20887544,34006.0,34005.0,2.56684844]
[1625510680269,1.20887544,34006.0,34005.0,3.95390531]
[1625510680823,1.26787544,34006.0,34005.0,3.95390531]
[1625510684927,1.26787544,34006.0,34005.0,4.64781342]
[1625510685374,1.35677544,34006.0,34005.0,4.64781342]
[1625510685476,5.79647544,34006.0,34005.0,4.64781342]
[1625510685575,5.70757544,34006.0,34005.0,4.64781342]
[1625510686029,5.96886544,34006.0,34005.0,4.64781342]
[1625510689937,5.96886544,34006.0,34005.0,3.26075655]
[1625510690037,5.96886544,34006.0,34005.0,2.94867655]
[1625510690137,6.05806544,34006.0,34005.0,2.94867655]
[1625510690237,5.99906544,34006.0,34005.0,2.80147655]
[1625510690337,5.99906544,34006.0,34005.0,2.75767655]
[1625510690436,6.0143766,34006.0,34005.0,2.69917655]
[1625510690537,6.0143766,34006.0,34005.0,1.48634754]
[1625510690638,6.69255272,34006.0,34005.0,1.48634754]
[1625510691190,6.69255272,34006.0,34002.0,1.38841572]
[1625510691191,9.23327182,34006.0,34003.0,0.34734367]
[1625510691390,9.29227182,34006.0,34003.0,0.34734367]
[1625510691490,0.01532352,34005.0,34002.0,1.04203851]
[1625510691591,3.2182213,34004.0,34002.0,0.34735118]
[1625510691691,3.3362213,34004.0,34002.0,0.27435118]
[1625510691992,3.23353614,34003.0,34000.0,0.69473206]
[1625510692192,0.48115088,34001.0,34000.0,0.69473206]
[1625510692290,0.54015088,34001.0,34000.0,0.69473206]
[1625510692393,0.59915088,34001.0,34000.0,0.69473206]
[1625510692492,0.61447562,34001.0,34000.0,0.69473206]
[1625510692592,3.83475578,34001.0,34000.0,0.69473206]
[1625510692792,3.81943104,34001.0,34000.0,0.69473206]
[1625510693144,3.81943104,34001.0,33999.0,0.69498143]
[1625510693506,1.86300295,34000.0,33999.0,0.69498143]
[1625510693698,1.98100295,34000.0,33999.0,0.69498143]
[1625510693798,3.33568628,34000.0,33998.0,0.69498865]
[1625510693898,0.0872,33999.0,33998.0,0.69498865]
[1625510693996,0.35816,33999.0,33998.0,0.69498865]
[1625510694097,2.13356297,33999.0,33998.0,0.69498865]
[1625510694198,2.43313841,33999.0,33998.0,0.69498865]
[1625510694502,2.43313841,33999.0,33997.0,0.6946229]
[1625510695052,1.86194535,33998.0,33997.0,0.6946229]
[1625510695150,2.06814535,33998.0,33997.0,0.6946229]
[1625510695352,1.97994535,33998.0,33997.0,0.6946229]
[1625510695551,1.97994535,33998.0,33996.0,0.69480381]
[1625510696208,1.86073727,33997.0,33996.0,0.69480381]
[1625510696409,1.97873727,33997.0,33996.0,0.69480381]
[1625510696703,0.79467786,33997.0,33996.0,0.69480381]
[1625510697003,0.79467786,33997.0,33996.0,0.57380381]
[1625510698004,0.79467786,33997.0,33993.0,1.21593295]
[1625510698155,0.24057544,33994.0,33993.0,1.21593295]
[1625510698356,0.35857544,33994.0,33993.0,1.21593295]
[1625510698455,0.35857544,33994.0,33992.0,1.21535801]
[1625510700515,0.35857544,33994.0,33991.0,1.21483905]
[1625510700917,0.16870082,33993.0,33991.0,1.21483905]
[1625510701015,0.22770082,33993.0,33991.0,1.21483905]
[1625510701116,0.28670082,33993.0,33991.0,1.21483905]
[1625510701617,0.28670082,33993.0,33989.0,2.38433028]
[1625510701618,0.28670082,33993.0,33990.0,1.21431489]
[1625510701968,0.16860111,33992.0,33989.0,2.21024609]
[1625510702067,0.48471111,33992.0,33989.0,2.21024609]
[1625510702167,0.60271111,33992.0,33989.0,2.21024609]
[1625510702269,0.24057544,33990.0,33989.0,2.21024609]
[1625510702368,0.24057544,33990.0,33989.0,1.21434609]
[1625510702469,0.29957544,33990.0,33989.0,1.21434609]
[1625510702870,5.1147,33989.0,33988.0,1.21432969]
[1625510702969,5.1737,33989.0,33988.0,1.21432969]
[1625510703070,5.2327,33989.0,33988.0,1.21432969]
[1625510704172,5.2327,33989.0,33987.0,1.21367425]
[1625510704273,0.24057544,33988.0,33987.0,1.21367425]
[1625510704421,0.35857544,33988.0,33987.0,1.21367425]
[1625510704675,0.35857544,33988.0,33986.0,1.21364521]
[1625510705675,0.35857544,33988.0,33985.0,1.21369142]
[1625510706025,0.35857544,33988.0,33984.0,1.26998275]
[1625510706225,0.24057544,33985.0,33984.0,1.21298275]
[1625510706326,0.29957544,33985.0,33984.0,1.21298275]
[1625510706429,0.29957544,33985.0,33983.0,1.21298581]
[1625510706575,0.58863544,33985.0,33983.0,1.21298581]
[1625510707678,0.58863544,33985.0,33982.0,1.21227813]
[1625510708228,0.24057544,33983.0,33982.0,1.21227813]
[1625510708428,0.29957544,33983.0,33982.0,1.21227813]
[1625510708944,0.29957544,33983.0,33981.0,1.45290777]
[1625510709682,0.29957544,33983.0,33981.0,0.24057544]
[1625510712351,0.35857544,33983.0,33981.0,0.24057544]
[1625510713453,0.35857544,33983.0,33981.0,0.29757544]
[1625510713640,0.35857544,33983.0,33982.0,0.17302366]
[1625510713641,0.29957544,33983.0,33982.0,0.17302366]
[1625510713740,0.35857544,33983.0,33982.0,0.50636366]
[1625510713943,0.35857544,33983.0,33982.0,0.33334]
[1625510714440,0.35857544,33983.0,33982.0,0.50629021]
[1625510714541,5.33747544,33983.0,33982.0,0.50629021]
[1625510715045,5.33747544,33983.0,33982.0,0.17295021]
[1625510715599,5.33747544,33983.0,33981.0,0.47051667]
[1625510716395,5.33747544,33983.0,33981.0,0.34341667]
[1625510717150,5.33747544,33983.0,33981.0,0.17047544]
[1625510717346,5.56480544,33983.0,33981.0,0.17047544]
[1625510717447,5.56480544,33983.0,33980.0,0.17287555]
[1625510717648,5.56480544,33983.0,33979.0,0.17287727]
[1625510717847,5.65420544,33983.0,33979.0,0.17287727]
[1625510718015,5.65420544,33983.0,33978.0,0.17281729]
[1625510718350,0.24057544,33979.0,33978.0,0.17281729]
[1625510719656,0.29957544,33979.0,33978.0,0.17281729]
[1625510720054,0.29957544,33979.0,33977.0,0.24057544]
[1625510720404,0.29957544,33979.0,33977.0,0.41333493]
[1625510721407,0.29957544,33979.0,33977.0,0.24057544]
[1625510721610,0.35857544,33979.0,33977.0,0.24057544]
[1625510721808,0.35857544,33979.0,33976.0,0.17275539]
[1625510721910,0.35857544,33979.0,33975.0,0.17269714]
[1625510722461,0.24057544,33976.0,33975.0,0.17269714]
[1625510722558,0.60824544,33976.0,33975.0,0.17269714]
[1625510722861,0.60824544,33976.0,33975.0,0.17618554]
[1625510723762,0.60824544,33976.0,33975.0,0.0034884]
[1625510726365,0.60824544,33976.0,33974.0,0.00348847]
[1625510726567,0.24057544,33975.0,33973.0,0.22962359]
[1625510726667,0.29957544,33975.0,33973.0,0.22962359]
[1625510726868,0.29957544,33975.0,33974.0,0.00348845]
[1625510727419,0.29957544,33975.0,33972.0,0.51398282]
[1625510727521,0.057,33974.0,33972.0,0.51398282]
[1625510727618,3.6698,33974.0,33972.0,0.51398282]
[1625510727721,3.7878,33974.0,33972.0,0.51398282]
[1625510727919,3.7878,33974.0,33973.0,0.00348851]
[1625510728674,3.7878,33974.0,33972.0,0.00348854]
[1625510729878,3.7288,33974.0,33972.0,0.00348854]
[1625510730934,3.7878,33974.0,33972.0,0.00348854]
[1625510732585,3.7878,33974.0,33970.0,0.00348873]
[1625510734693,0.24057544,33971.0,33970.0,0.00348873]
[1625510734799,0.35657544,33971.0,33970.0,0.00348873]
[1625510734895,0.41557544,33971.0,33970.0,0.00348873]
[1625510735496,0.41557544,33971.0,33968.0,0.00348891]
[1625510735698,0.41557544,33971.0,33970.0,0.00348891]
[1625510735799,0.50357544,33971.0,33970.0,0.00348891]
[1625510735998,0.50357544,33971.0,33968.0,0.00348896]
[1625510736650,0.24057544,33969.0,33968.0,0.00068896]
[1625510736849,0.53904544,33969.0,33968.0,0.00068896]
[1625510737298,0.59604544,33969.0,33968.0,0.00068896]
[1625510737850,0.65504544,33969.0,33965.0,1.03519732]
[1625510737951,0.71404544,33969.0,33965.0,0.94589732]
[1625510738049,0.71404544,33969.0,33964.0,1.03519599]
[1625510738309,1.21404544,33969.0,33964.0,1.03519599]
[1625510738408,1.21404544,33969.0,33964.0,1.00279599]
[1625510738451,1.21404544,33969.0,33964.0,0.90269599]
[1625510738653,0.01556673,33968.0,33964.0,0.90269599]
[1625510738751,0.01556673,33968.0,33934.0,2.76065549]
[1625510738752,0.48115088,33965.0,33959.0,1.20789672]
[1625510738864,0.057,33964.0,33959.0,1.20789672]
[1625510739052,0.116,33964.0,33959.0,1.20789672]
[1625510739154,0.175,33964.0,33959.0,1.06129672]
[1625510739464,3.6341,33960.0,33951.0,1.38011938]
[1625510739558,0.557,33959.0,33951.0,1.38011938]
[1625510739762,0.616,33959.0,33951.0,1.38011938]
[1625510739853,0.675,33959.0,33952.0,0.00349018]
[1625510740353,0.675,33959.0,33946.0,0.0034902]
[1625510740554,0.7642,33959.0,33946.0,0.0034902]
[1625510740704,0.72172632,33947.0,33946.0,0.0034902]
[1625510740807,0.94338632,33947.0,33946.0,0.0034902]
[1625510741557,0.94338632,33947.0,33945.0,1.3802224]
[1625510741707,0.94338632,33947.0,33946.0,0.00349027]
[1625510742206,0.94338632,33947.0,33945.0,0.0034903]
[1625510742760,0.94338632,33947.0,33944.0,0.00349036]
[1625510743185,1.00238632,33947.0,33944.0,0.00349036]
[1625510743813,1.00238632,33947.0,33942.0,0.00349066]
[1625510744163,0.94338632,33947.0,33942.0,0.00349066]
[1625510744261,1.00238632,33947.0,33942.0,0.00349066]
[1625510744476,1.14658632,33947.0,33942.0,0.00349066]
[1625510744764,0.24057544,33943.0,33942.0,0.00349066]
[1625510744864,0.29957544,33943.0,33942.0,0.00349066]
[1625510745816,0.24057544,33943.0,33942.0,0.00349066]
[1625510745967,0.29957544,33943.0,33942.0,0.00349066]
[1625510746117,0.24057544,33943.0,33942.0,0.00349066]
[1625510746216,0.29957544,33943.0,33942.0,0.00349066]
[1625510746319,0.24057544,33943.0,33942.0,0.00349066]
[1625510746416,0.29957544,33943.0,33942.0,0.00349066]
[1625510746517,0.24057544,33943.0,33942.0,0.00349066]
[1625510746767,0.24057544,33943.0,33941.0,0.24057544]
[1625510747269,0.29957544,33943.0,33941.0,0.24057544]
[1625510747370,0.24057544,33943.0,33941.0,0.24057544]
[1625510747570,0.29957544,33943.0,33941.0,0.24057544]
[1625510747670,0.24057544,33943.0,33941.0,0.24057544]
[1625510747871,0.29957544,33943.0,33941.0,0.24057544]
[1625510748221,0.35857544,33943.0,33941.0,0.24057544]
[1625510750828,0.24057544,33943.0,33941.0,0.24057544]
[1625510750940,0.059,33943.0,33941.0,0.24057544]
[1625510751095,0.5,33973.0,33941.0,0.24057544]
[1625510751145,0.5,33973.0,33941.0,0.29957544]
[1625510751146,0.0873,33963.0,33941.0,0.29957544]
[1625510751233,0.9893,33962.0,33941.0,0.65850544]
[1625510751337,0.9303,33962.0,33941.0,0.65850544]
[1625510751462,0.9303,33962.0,33942.0,0.00349032]
[1625510751630,0.9303,33962.0,33954.0,4.25184]
[1625510751787,0.9303,33962.0,33954.0,4.31084]
[1625510751995,0.9303,33962.0,33944.0,1.37822598]
[1625510752103,0.9303,33962.0,33954.0,0.26688]
[1625510752222,0.057,33961.0,33944.0,1.43722598]
[1625510752282,0.057,33961.0,33948.0,1.37782195]
[1625510752380,0.116,33961.0,33948.0,1.37782195]
[1625510752481,0.059,33961.0,33948.0,1.67111195]
[1625510752579,0.118,33961.0,33948.0,1.73011195]
[1625510752679,0.059,33961.0,33948.0,1.73011195]
[1625510752779,0.24057544,33951.0,33950.0,0.24057544]
[1625510752879,0.24057544,33951.0,33950.0,0.29957544]
[1625510753178,0.24057544,33951.0,33950.0,0.24057544]
[1625510754582,0.24057544,33951.0,33950.0,0.35857544]
[1625510754984,0.24057544,33951.0,33950.0,0.29957544]
[1625510755284,0.24057544,33951.0,33950.0,0.24057544]
[1625510755985,0.24057544,33951.0,33945.0,1.3782821]
[1625510756436,0.24057544,33951.0,33943.0,0.24057544]
[1625510756785,0.48115088,33944.0,33943.0,0.24057544]
[1625510756935,0.69730088,33944.0,33943.0,0.24057544]
[1625510757635,0.69730088,33944.0,33943.0,0.92995261]
[1625510759289,0.81330088,33944.0,33943.0,0.92995261]
[1625510759793,0.81330088,33944.0,33943.0,0.24057544]
[1625510760892,0.75430088,33944.0,33943.0,0.24057544]
[1625510761093,0.69730088,33944.0,33943.0,0.24057544]
[1625510761696,0.48115088,33944.0,33943.0,0.24057544]
[1625510762897,0.48115088,33944.0,33943.0,0.2440661]
[1625510768159,4.95575088,33944.0,33943.0,0.2440661]
[1625510768372,5.01475088,33944.0,33943.0,0.2440661]
[1625510768469,5.22148088,33944.0,33943.0,0.2440661]
[1625510769210,5.27848088,33944.0,33943.0,0.2440661]
[1625510769308,5.33748088,33944.0,33943.0,0.00349066]
[1625510769812,5.33748088,33944.0,33942.0,0.00349122]
[1625510770413,5.33748088,33944.0,33938.0,0.69337528]
[1625510770612,5.33748088,33944.0,33943.0,0.00349122]
[1625510770862,5.57805632,33944.0,33939.0,0.00349122]
[1625510771415,5.57805632,33944.0,33938.0,0.00349122]
[1625510772917,0.24057544,33939.0,33938.0,0.00349122]
[1625510773018,0.35657544,33939.0,33938.0,0.00349122]
[1625510773468,0.29957544,33939.0,33938.0,0.00349122]
[1625510773567,0.35657544,33939.0,33938.0,0.00349122]
[1625510773667,0.35657544,33939.0,33937.0,0.00349124]
[1625510773918,0.35657544,33939.0,33936.0,0.68974708]
[1625510773919,0.35657544,33939.0,33938.0,0.00349124]
[1625510774220,0.35657544,33939.0,33937.0,0.00349124]
[1625510774468,0.35657544,33939.0,33938.0,0.00349127]
[1625510774719,0.35657544,33939.0,33937.0,0.00349127]
[1625510774969,0.24057544,33938.0,33936.0,0.68974708]
[1625510775170,0.29957544,33938.0,33936.0,0.68974708]
[1625510775267,0.29957544,33938.0,33937.0,0.00349123]
[1625510775619,0.35657544,33938.0,33937.0,0.00349123]
[1625510776872,0.35657544,33938.0,33936.0,0.00349129]
[1625510777728,0.35657544,33938.0,33936.0,0.69390108]
[1625510778183,0.35657544,33938.0,33937.0,0.00349135]
[1625510778684,0.35657544,33938.0,33936.0,0.00349137]
[1625510780939,0.24057544,33937.0,33936.0,0.00349137]
[1625510781038,0.66148544,33937.0,33936.0,0.00349137]
[1625510782092,0.66148544,33937.0,33934.0,0.00349165]
[1625510782291,0.66148544,33937.0,33934.0,0.69435059]
[1625510782641,0.66148544,33937.0,33935.0,0.00349165]
[1625510782940,0.24057544,33936.0,33935.0,0.00349165]
[1625510783042,0.29757544,33936.0,33935.0,0.00349165]
[1625510783142,0.35657544,33936.0,33935.0,0.00349165]
[1625510783690,0.35657544,33936.0,33933.0,0.00349167]
[1625510783990,0.35657544,33936.0,33935.0,0.00349164]
[1625510784190,0.35657544,33936.0,33933.0,0.69106239]
[1625510784191,0.35657544,33936.0,33934.0,0.00349166]
[1625510784492,0.35657544,33936.0,33935.0,0.00349168]
[1625510784794,0.35657544,33936.0,33934.0,0.00349168]
[1625510784994,0.35657544,33936.0,33935.0,0.0034917]
[1625510785198,0.35657544,33936.0,33932.0,0.45656678]
[1625510785492,0.35657544,33936.0,33930.0,1.03644804]
[1625510785616,0.35657544,33936.0,33933.0,0.00349176]
[1625510785792,0.35657544,33936.0,33931.0,0.00349174]
[1625510786045,0.35657544,33936.0,33934.0,0.00349178]
[1625510786392,0.0894,33935.0,33930.0,0.00349183]
[1625510786495,0.1484,33935.0,33929.0,0.97765921]
[1625510786594,0.057,33934.0,33929.0,0.88385921]
[1625510786693,0.116,33934.0,33929.0,0.88385921]
[1625510786795,0.175,33934.0,33929.0,0.88385921]
[1625510786993,0.48115088,33930.0,33929.0,0.88385921]
[1625510787093,0.80999088,33930.0,33929.0,0.87975921]
[1625510787294,0.80999088,33930.0,33929.0,0.00349215]
[1625510787414,0.86899088,33930.0,33929.0,0.00349215]
[1625510787753,0.86899088,33930.0,33925.0,0.00349244]
[1625510787847,3.8131,33926.0,33925.0,0.00349244]
[1625510787947,3.8701,33926.0,33925.0,0.00349244]
[1625510788044,3.8701,33926.0,33923.0,0.00349267]
[1625510788710,4.4881,33926.0,33923.0,0.00349267]
[1625510788805,4.4881,33926.0,33922.0,1.20961542]
[1625510788997,0.72172632,33923.0,33920.0,1.2097204]
[1625510789102,0.057,33922.0,33920.0,1.2097204]
[1625510789298,0.116,33922.0,33920.0,1.2097204]
[1625510789399,0.616,33922.0,33920.0,1.2097204]
[1625510789498,0.675,33922.0,33918.0,0.24057544]
[1625510789599,0.675,33922.0,33918.0,0.23247544]
[1625510790100,0.7644,33922.0,33912.0,1.3474186]
[1625510790398,0.7644,33922.0,33913.0,0.00349403]
[1625510790500,0.7644,33922.0,33912.0,1.32631263]
[1625510790602,0.2644,33922.0,33912.0,1.32631263]
[1625510790698,0.5,33921.0,33912.0,1.32631263]
[1625510790800,0.057,33920.0,33912.0,1.20491263]
[1625510791000,0.96756632,33913.0,33912.0,1.20491263]
[1625510791099,0.96756632,33913.0,33899.0,0.24057544]
[1625510791100,1.02656632,33913.0,33905.0,1.55691409]
[1625510791200,0.057,33912.0,33905.0,1.61591409]
[1625510791300,0.116,33912.0,33905.0,1.61591409]
[1625510791500,0.116,33912.0,33906.0,0.00349415]
[1625510791604,0.057,33912.0,33906.0,0.00349415]
[1625510791702,0.116,33912.0,33906.0,0.06249415]
[1625510792102,0.116,33912.0,33907.0,0.0034941]
[1625510792204,0.057,33912.0,33907.0,0.0624941]
[1625510792553,0.116,33912.0,33908.0,0.00349406]
[1625510792852,0.057,33912.0,33908.0,0.00349406]
[1625510792954,0.24057544,33909.0,33908.0,0.00349406]
[1625510793053,0.24057544,33909.0,33906.0,0.00349406]
[1625510793254,0.24057544,33909.0,33906.0,0.06249406]
[1625510793355,0.24057544,33909.0,33906.0,0.059]
[1625510793655,0.24057544,33909.0,33907.0,0.00349409]
[1625510793755,0.24057544,33909.0,33907.0,0.30572409]
[1625510794106,0.24057544,33909.0,33907.0,0.30223]
[1625510794557,0.24057544,33909.0,33908.0,0.00349405]
[1625510794759,0.24057544,33909.0,33908.0,0.06249405]
[1625510795158,0.24057544,33909.0,33908.0,0.00349405]
[1625510795609,0.24057544,33909.0,33907.0,0.24323]
[1625510795710,0.24057544,33909.0,33907.0,0.30223]
[1625510795811,0.24057544,33909.0,33908.0,0.00349392]
[1625510796113,0.24057544,33909.0,33908.0,0.06249392]
[1625510796862,0.24057544,33909.0,33908.0,0.059]
[1625510797064,0.24057544,33909.0,33907.0,0.24323]
[1625510797165,0.24057544,33909.0,33907.0,1.85842474]
[1625510797564,0.24057544,33909.0,33907.0,0.30223]
[1625510798165,0.24057544,33909.0,33907.0,0.36123]
[1625510798265,0.24057544,33909.0,33907.0,0.30223]
[1625510798565,0.24057544,33909.0,33907.0,0.36123]
[1625510798766,0.24057544,33909.0,33908.0,0.00349389]
[1625510798867,0.24057544,33909.0,33908.0,1.61826978]
[1625510798967,0.24057544,33909.0,33908.0,1.67726978]
[1625510799217,0.24057544,33909.0,33908.0,0.12149389]
[1625510799517,0.24057544,33909.0,33908.0,0.118]
[1625510802976,0.24057544,33909.0,33908.0,0.12149397]